fUSD/lending_fUSD_20260305
["ID","MTS","AMOUNT","RATE_DAILY","PERIOD"]
[407711688,1772698241159,-500.8406382,0.00016973,2]
[407711689,1772698241168,-500.66004421,0.00016973,2]
[407711690,1772698241178,-500.6048629,0.00016973,2]
[407711691,1772698241188,-161.77269484,0.00016973,2]
[407711692,1772698241197,-160.23398328,0.00016973,2]
[407711693,1772698241207,-500.6040409,0.00016973,2]
[407711694,1772698241217,-500.70738406,0.00016973,2]
[407711695,1772698241227,-500.30777449,0.00016973,2]
[407711696,1772698241237,-500.65533715,0.00016973,2]
[407711697,1772698241246,-500.82420992,0.00016973,2]
[407711698,1772698241255,-500.63657563,0.00016973,2]
[407711699,1772698241266,-516.64695093,0.00016973,2]
[407711700,1772698241277,-500.83142573,0.00016973,2]
[407711701,1772698241288,-600.66664765,0.00016973,2]
[407711702,1772698241298,-500.0,0.00016973,2]
[407711703,1772698241308,-165.98720503,0.00016973,2]
[407711704,1772698241318,-501.08912633,0.00016973,2]
[407711705,1772698241328,-250.0,0.00016973,2]
[407711706,1772698241338,-191.9447673,0.00016999,2]
[407711707,1772698241347,-500.0,0.00016999,2]
[407711708,1772698241357,-315.60173525,0.00016999,2]
[407711709,1772698241366,-500.0,0.00016999,2]
[407711710,1772698241376,-626.77329208,0.00016999,2]
[407711711,1772698241386,-500.0,0.00016999,2]
[407711712,1772698241395,-500.0,0.00016999,2]
[407711713,1772698241404,-500.0,0.00016999,2]
[407711714,1772698241414,-255.32179072,0.00016999,2]
[407711715,1772698241424,-500.0,0.00016999,2]
[407711716,1772698241433,-151.0,0.00017,2]
[407711717,1772698241442,-200.0,0.00017,2]
[407711718,1772698241452,-200.0,0.00017,2]
[407711719,1772698241461,-200.0,0.00017,2]
[407711720,1772698241471,-200.0,0.00017,2]
[407711721,1772698241482,-16518.90093131,0.00017,2]
[407711722,1772698241491,-200.0,0.00017,2]
[407711723,1772698241501,-235755.5424497,0.00017,2]
[407711724,1772698241512,-157.24,0.0001706,2]
[407711725,1772698241523,-200.0,0.00017069,2]
[407711726,1772698241533,-157.24,0.0001733,2]
[407711727,1772698241544,-200.0,0.00017438,2]
[407711728,1772698241553,-500.76272962,0.00017521,2]
[407711729,1772698241562,-1037.76977486,0.00017521,2]
[407711730,1772698241572,-1050.62118984,0.00017521,2]
[407711731,1772698241581,-157.24,0.000176,2]
[407711732,1772698241590,-786.02148944,0.000177,2]
[407711733,1772698241599,-2826.69132115,0.000177,2]
[407711734,1772698241608,-637.51,0.00017819,2]
[407711735,1772698241618,-519.25,0.00017819,2]
[407711736,1772698241627,-642.68,0.00017819,2]
[407711737,1772698241636,-500.0,0.00017819,2]
[407711738,1772698241645,-157.24,0.0001787,2]
[407711739,1772698241654,-582.28,0.0001788,2]
[407711740,1772698241664,-500.0,0.0001788,2]
[407711741,1772698241675,-500.0,0.00017888,2]
[407711742,1772698241684,-500.0,0.00017888,2]
[407711743,1772698241694,-500.0,0.00017888,2]
[407711744,1772698241704,-500.0,0.00017888,2]
[407711745,1772698241714,-300.0,0.00017888,2]
[407711746,1772698241723,-500.0,0.00017888,2]
[407711747,1772698241733,-500.0,0.00017888,2]
[407711748,1772698241743,-500.0,0.00017888,2]
[407711749,1772698241753,-500.0,0.00017888,2]
[407711750,1772698241763,-500.0,0.00017888,2]
[407711751,1772698241774,-500.0,0.00017888,2]
[407711752,1772698241783,-536.39251583,0.00017888,2]
[407711753,1772698241792,-500.0,0.00017888,2]
[407711754,1772698241801,-500.0,0.00017888,2]
[407711755,1772698241812,-500.0,0.00017889,2]
[407711756,1772698241823,-500.0,0.00017889,2]
[407711757,1772698241834,-500.0,0.00017889,2]
[407711758,1772698241845,-500.0,0.00017889,2]
[407711759,1772698241855,-500.0,0.00017889,2]
[407711760,1772698241864,-500.0,0.00017889,2]
[407711761,1772698241875,-500.0,0.00017889,2]
[407711762,1772698241886,-500.0,0.00017889,2]
[407711763,1772698241896,-500.0,0.00017889,2]
[407711764,1772698241905,-500.0,0.00017889,2]
[407711765,1772698241916,-500.0,0.00017889,2]
[407711766,1772698241927,-500.0,0.00017889,2]
[407711767,1772698241936,-500.0,0.00017889,2]
[407711768,1772698241945,-500.0,0.00017889,2]
[407711769,1772698241955,-500.0,0.00017889,2]
[407711770,1772698241965,-370.69943514,0.00017889,2]
[407711771,1772698241976,-500.0,0.00017889,2]
[407711772,1772698241985,-500.0,0.00017889,2]
[407711773,1772698241995,-500.0,0.00017889,2]
[407711774,1772698242005,-500.0,0.00017889,2]
[407711775,1772698242016,-500.0,0.00017889,2]
[407711776,1772698242027,-500.0,0.00017889,2]
[407711777,1772698242036,-500.0,0.00017889,2]
[407711778,1772698242045,-500.0,0.00017889,2]
[407711779,1772698242054,-500.0,0.00017889,2]
[407711780,1772698242064,-500.0,0.00017889,2]
[407711781,1772698242073,-500.0,0.00017889,2]
[407711782,1772698242082,-500.0,0.00017889,2]
[407711783,1772698242091,-500.0,0.00017889,2]
[407711784,1772698242101,-500.0,0.00017889,2]
[407711785,1772698242111,-500.0,0.00017889,2]
[407711786,1772698242120,-500.0,0.00017889,2]
[407711787,1772698242130,-500.0,0.00017889,2]
[407711788,1772698242139,-500.0,0.00017889,2]
[407711789,1772698242149,-500.0,0.00017889,2]
[407711790,1772698242159,-500.0,0.00017889,2]
[407711791,1772698242168,-500.0,0.00017889,2]
[407711792,1772698242179,-506.37477343,0.00017889,2]
[407711793,1772698242189,-500.0,0.00017889,2]
[407711794,1772698242198,-500.0,0.00017889,2]
[407711795,1772698242208,-500.0,0.00017889,2]
[407711796,1772698242218,-500.0,0.00017889,2]
[407711797,1772698242227,-500.0,0.00017889,2]
[407711798,1772698242237,-500.0,0.00017889,2]
[407711799,1772698242247,-500.0,0.00017889,2]
[407711800,1772698242256,-500.0,0.00017889,2]
[407711801,1772698242265,-500.0,0.00017889,2]
[407711802,1772698242274,-500.0,0.00017889,2]
[407711803,1772698242284,-582.28,0.00017889,2]
[407711804,1772698242293,-582.28,0.00017889,2]
[407711805,1772698242303,-582.28,0.00017889,2]
[407711806,1772698242312,-582.28,0.00017889,2]
[407711807,1772698242322,-582.28,0.00017889,2]
[407711808,1772698242331,-582.28,0.00017889,2]
[407711809,1772698242340,-582.28,0.00017889,2]
[407711810,1772698242350,-582.28,0.00017889,2]
[407711811,1772698242359,-582.28,0.00017889,2]
[407711812,1772698242368,-582.28,0.00017889,2]
[407711813,1772698242378,-500.0,0.00017889,2]
[407711814,1772698242388,-500.0,0.00017889,2]
[407711815,1772698242397,-500.0,0.00017889,2]
[407711816,1772698242407,-500.0,0.00017889,2]
[407711817,1772698242416,-500.0,0.00017889,2]
[407711818,1772698242426,-500.0,0.00017889,2]
[407711819,1772698242436,-500.0,0.00017889,2]
[407711820,1772698242445,-500.0,0.00017889,2]
[407711821,1772698242455,-500.0,0.00017889,2]
[407711822,1772698242464,-500.0,0.00017889,2]
[407711823,1772698242475,-500.0,0.00017889,2]
[407711824,1772698242485,-500.0,0.00017889,2]
[407711825,1772698242495,-500.0,0.00017889,2]
[407711826,1772698242505,-500.0,0.00017889,2]
[407711827,1772698242515,-500.0,0.00017889,2]
[407711828,1772698242530,-500.0,0.00017889,2]
[407711829,1772698242541,-500.0,0.00017889,2]
[407711830,1772698242552,-500.0,0.00017889,2]
[407711831,1772698242562,-500.0,0.00017889,2]
[407711832,1772698242573,-500.0,0.00017889,2]
[407711833,1772698242583,-500.0,0.00017889,2]
[407711834,1772698242592,-500.0,0.00017889,2]
[407711835,1772698242606,-500.0,0.00017889,2]
[407711836,1772698242615,-500.0,0.00017889,2]
[407711837,1772698242624,-500.0,0.00017889,2]
[407711838,1772698242634,-500.0,0.00017889,2]
[407711839,1772698242643,-518.06665456,0.00017889,2]
[407711840,1772698242653,-500.0,0.00017889,2]
[407711841,1772698242662,-500.0,0.00017889,2]
[407711842,1772698242673,-500.0,0.00017889,2]
[407711843,1772698242682,-500.0,0.00017889,2]
[407711844,1772698242691,-500.0,0.00017889,2]
[407711845,1772698242701,-500.0,0.00017889,2]
[407711846,1772698242711,-500.0,0.00017889,2]
[407711847,1772698242721,-500.0,0.00017889,2]
[407711848,1772698242731,-500.0,0.00017889,2]
[407711849,1772698242742,-500.0,0.00017889,2]
[407711850,1772698242751,-500.0,0.00017889,2]
[407711851,1772698242761,-500.0,0.00017889,2]
[407711852,1772698242771,-500.0,0.00017889,2]
[407711853,1772698242782,-509.14901149,0.00017889,2]
[407711854,1772698242792,-175.65490252,0.00017898,2]
[407711855,1772698242802,-200.0,0.00017986,2]
[407711856,1772698242812,-2500.0,0.00017993,2]
[407711857,1772698242822,-5000.0,0.00017993,2]
[407711858,1772698242831,-250.0,0.00017993,2]
[407711859,1772698242841,-250.0,0.00017993,2]
[407711860,1772698242851,-708.0,0.00017996,2]
[407711861,1772698242861,-1617.0,0.00018086,2]
[407711862,1772698242870,-1786.2328339,0.000181,2]
[407711863,1772698242879,-157.24,0.0001814,2]
[407711864,1772698242890,-3104.2347021,0.0001821,2]
[407711865,1772698242900,-157.24,0.0001841,2]
[407711866,1772698242910,-200.0,0.00018534,2]
[407711867,1772698242919,-155.0,0.00018588,2]
[407711868,1772698242929,-2826.69132115,0.000186,2]
[407711869,1772698242939,-157.24,0.0001868,2]
[407711870,1772698242951,-505.0,0.00018889,6]
[407711871,1772698242960,-157.24,0.0001895,2]
[407711872,1772698242969,-712.12867022,0.00019,2]
[407711873,1772698242979,-836.37030113,0.00019,2]
[407711874,1772698242989,-150.0,0.00019073,2]
[407711875,1772698242999,-184.899268,0.00019075,2]
[407711876,1772698243008,-200.0,0.00019082,2]
[407711877,1772698243018,-292.135983,0.00019102,2]
[407711878,1772698243027,-157.24,0.0001922,2]
[407711879,1772698243037,-1100.72713899,0.00019366,2]
[407711880,1772698243047,-157.24,0.0001949,2]
[407711881,1772698243056,-2826.69132115,0.000195,2]
[407711882,1772698243065,-500.0,0.00019629,2]
[407711883,1772698243075,-200.0,0.0001963,2]
[407711884,1772698243084,-157.24,0.0001976,2]
[407711885,1772698243093,-279.76354489,0.000198,2]
[407711886,1772698243103,-151.0,0.00019897,2]
[407711887,1772698243112,-4945.54266186,0.000199,3]
[407711888,1772698243121,-1915.29732179,0.000199,2]
[407711889,1772698243131,-4739.18564521,0.000199,2]
[407711890,1772698243140,-246.54770135,0.000199,3]
[407711891,1772698243149,-4653.78916227,0.000199,2]
[407711892,1772698243158,-917.53018771,0.0001999,2]
[407711893,1772698243167,-151.0,0.00019997,2]
[407711894,1772698243177,-151.0,0.00019997,2]
[407711895,1772698243186,-151.0,0.00019997,2]
[407711896,1772698243196,-500.0,0.0002,14]
[407711897,1772698243205,-317164.87736995,0.0002,2]
[407711898,1772698243215,-209.23668347,0.0002,120]
[407711899,1772698243224,-1539.41723611,0.0002,2]
[407711900,1772698243234,-177.21271785,0.0002,2]
[407711901,1772698243244,-663.68026894,0.0002,30]
[407711902,1772698243253,-1271193.49879684,0.0002,2]
[407711903,1772698243263,-501.17448967,0.0002,10]
[407711904,1772698243273,-1095.56,0.0002,120]
[407711905,1772698243283,-722.6341572,0.0002,120]
[407711906,1772698243291,-600.78628492,0.0002,2]
[407711907,1772698243301,-5000.0,0.0002,2]
[407711908,1772698243310,-5000.0,0.0002,2]
[407711909,1772698243320,-3679.175262,0.0002,2]
[407711910,1772698243329,-150.27822359,0.0002,20]
[407711911,1772698243339,-1000.0,0.0002,7]
[407711912,1772698243348,-8720.0,0.0002001,2]
[407711913,1772698243358,-157.26,0.0002003,2]
[407711914,1772698243368,-167.0,0.00020094,2]
[407711915,1772698243377,-200.0,0.00020178,2]
[407711916,1772698243387,-500.5643,0.00020279,120]
[407711917,1772698243397,-2826.69132115,0.000204,2]
[407711918,1772698243406,-156.48,0.00020548,2]
[407711919,1772698243416,-180.29897544,0.00020619,2]
[407711920,1772698243426,-22761.44311434,0.000207,2]
[407711921,1772698243435,-200.0,0.00020726,2]
[407711922,1772698243445,-20000.0,0.00021,2]
[407711923,1772698243454,-788.80543513,0.00021,120]
[407711924,1772698243463,-202.72622012,0.00021274,2]
[407711925,1772698243473,-2826.69132115,0.000213,2]
[407711926,1772698243482,-505.0,0.00021333,8]
[407711927,1772698243491,-401.08765376,0.00021797,2]
[407711928,1772698243501,-5000.0,0.00021918,2]
[407711929,1772698243511,-667.7,0.00021918,2]
[407711930,1772698243521,-667.7,0.00021918,2]
[407711931,1772698243532,-667.7,0.00021918,2]
[407711932,1772698243542,-1100.72713899,0.00021933,2]
[407711933,1772698243551,-241.5064814,0.0002211,2]
[407711934,1772698243561,-667.7,0.00022137,2]
[407711935,1772698243571,-2826.69132115,0.000222,2]
[407711936,1772698243580,-667.7,0.00022356,2]
[407711937,1772698243590,-35686.03068509,0.000225,2]
[407711938,1772698243601,-667.7,0.00022575,2]
[407711939,1772698243611,-693.83060529,0.00022735,2]
[407711940,1772698243620,-667.7,0.00022795,2]
[407711941,1772698243629,-1137.14088206,0.00023,2]
[407711942,1772698243639,-160.0,0.00023,2]
[407711943,1772698243648,-667.7,0.00023014,2]
[407711944,1772698243657,-2826.69132115,0.000231,2]
[407711945,1772698243666,-667.7,0.00023233,2]
[407711946,1772698243676,-667.7,0.00023452,2]
[407711947,1772698243686,-667.7,0.00023671,2]
[407711948,1772698243695,-505.0,0.00023778,10]
[407711949,1772698243704,-667.7,0.0002389,2]
[407711950,1772698243714,-1027.10998383,0.00024,2]
[407711951,1772698243723,-2826.69132115,0.00024,2]
[407711952,1772698243733,-667.7,0.0002411,2]
[407711953,1772698243742,-167.0,0.00024112,2]
[407711954,1772698243752,-667.7,0.00024329,2]
[407711955,1772698243761,-1100.72713899,0.00024499,2]
[407711956,1772698243771,-667.7,0.00024548,2]
[407711957,1772698243780,-667.7,0.00024548,2]
[407711958,1772698243789,-165.81257437,0.0002455,15]
[407711959,1772698243799,-558.45260981,0.0002463,2]
[407711960,1772698243810,-2017.87050745,0.00024657,2]
[407711961,1772698243819,-234.25,0.00024658,2]
[407711962,1772698243828,-150.0,0.00024658,2]
[407711963,1772698243837,-730.79247565,0.00024732,13]
[407711964,1772698243847,-500.0,0.00024899,2]
[407711965,1772698243856,-500.0,0.00024899,2]
[407711966,1772698243867,-500.0,0.00024899,2]
[407711967,1772698243883,-500.0,0.00024899,2]
[407711968,1772698243892,-500.0,0.00024899,2]
[407711969,1772698243902,-500.0,0.00024899,2]
[407711970,1772698243912,-582.28,0.00024899,2]
[407711971,1772698243921,-177.14945896,0.00024899,2]
[407711972,1772698243932,-500.0,0.00024899,2]
[407711973,1772698243942,-500.0,0.00024899,2]
[407711974,1772698243952,-500.0,0.00024899,2]
[407711975,1772698243962,-504.08967444,0.00024899,2]
[407711976,1772698243973,-34157.598954,0.000249,2]
[407711977,1772698243982,-2826.69132115,0.000249,2]
[407711978,1772698244210,-1117.70254708,0.00025,2]
[407711979,1772698244221,-208.21631041,0.00025,2]
[407711980,1772698244231,-413.47861271,0.00025,60]
[407711981,1772698244240,-1790.92690339,0.00025,2]
[407711982,1772698244250,-171.71166471,0.00025,5]
[407711983,1772698244259,-500.0,0.00025869,2]
[407711984,1772698244269,-150.0,0.0002589,2]
[407711985,1772698244279,-4539.40159239,0.00026,2]
[407711986,1772698244288,-151.0,0.00026,2]
[407711987,1772698244298,-151.0,0.00026,2]
[407711988,1772698244307,-506.719035,0.00026,2]
[407711989,1772698244317,-506.719035,0.00026,2]
[407711990,1772698244327,-506.719035,0.00026,2]
[407711991,1772698244337,-178.14104,0.00026,2]
[407711992,1772698244347,-506.719035,0.00026,2]
[407711993,1772698244356,-178.14104,0.00026,2]
[407711994,1772698244366,-178.14104,0.00026,2]
[407711995,1772698244376,-178.14104,0.00026,2]
[407711996,1772698244386,-493.726656,0.00026,2]
[407711997,1772698244396,-493.726656,0.00026,2]
[407711998,1772698244406,-493.726656,0.00026,2]
[407711999,1772698244415,-493.726656,0.00026,2]
[407712000,1772698244426,-352.137721,0.00026,2]
[407712001,1772698244436,-352.137721,0.00026,2]
[407712002,1772698244446,-352.137721,0.00026,2]
[407712003,1772698244455,-352.137721,0.00026,2]
[407712004,1772698244465,-505.0,0.00026222,12]
[407712005,1772698244475,-500.0,0.00026391,2]
[407712006,1772698244484,-27578.01740792,0.000264,2]
[407712007,1772698244494,-151.0,0.000264,2]
[407712008,1772698244504,-151.0,0.000264,2]
[407712009,1772698244514,-151.0,0.000264,2]
[407712010,1772698244527,-151.0,0.000264,2]
[407712011,1772698244537,-151.0,0.000264,2]
[407712012,1772698244547,-151.0,0.000264,2]
[407712013,1772698244557,-151.0,0.000264,2]
[407712014,1772698244568,-151.0,0.000264,2]
[407712015,1772698244578,-151.0,0.000264,2]
[407712016,1772698244587,-503.068296,0.000264,2]
[407712017,1772698244598,-503.068296,0.000264,2]
[407712018,1772698244608,-503.068296,0.000264,2]
[407712019,1772698244618,-503.068296,0.000264,2]
[407712020,1772698244628,-151.0,0.000264,2]
[407712021,1772698244637,-151.0,0.000264,2]
[407712022,1772698244646,-151.0,0.000264,2]
[407712023,1772698244657,-151.0,0.000264,2]
[407712024,1772698244667,-151.0,0.000264,2]
[407712025,1772698244676,-151.0,0.000264,2]
[407712026,1772698244685,-151.0,0.000264,2]
[407712027,1772698244695,-667.7,0.00026594,2]
[407712028,1772698244704,-172.70211477,0.00027,3]
[407712029,1772698244714,-172.70211477,0.00027,3]
[407712030,1772698244724,-1100.72713899,0.00027066,2]
[407712031,1772698244733,-150.0,0.00027185,2]
[407712032,1772698244743,-500.0,0.00027287,2]
[407712033,1772698244752,-150.0,0.00027369,2]
[407712034,1772698244762,-4127.28448745,0.0002739,2]
[407712035,1772698244784,-1256.33,0.00027395,2]
[407712036,1772698244799,-271.41758831,0.00027397,2]
[407712037,1772698244808,-602.683491,0.00027397,2]
[407712038,1772698244818,-602.683491,0.00027397,2]
[407712039,1772698244827,-602.683491,0.00027397,2]
[407712040,1772698244837,-602.683491,0.00027397,2]
[407712041,1772698244846,-234.25,0.00027397,2]
[407712042,1772698244855,-500.0,0.00027397,5]
[407712043,1772698244865,-169.13,0.000274,7]
[407712044,1772698244874,-454.71,0.000274,7]
[407712045,1772698244884,-1000.0,0.00027419,20]
[407712046,1772698244894,-202.08218911,0.000275,2]
[407712047,1772698244904,-562.71516522,0.00028,60]
[407712048,1772698244913,-561.67352962,0.00028,5]
[407712049,1772698244922,-150.0,0.00028544,2]
[407712050,1772698244932,-667.7,0.00028639,7]
[407712051,1772698244941,-505.0,0.00028667,14]
[407712052,1772698244953,-693.83060529,0.0002867,2]
[407712053,1772698244963,-504.98178023,0.00028767,5]
[407712054,1772698244972,-9999.99,0.00029009,2]
[407712055,1772698244982,-1250.9,0.00029009,2]
[407712056,1772698244993,-150.99,0.00029009,2]
[407712057,1772698245002,-299.99,0.00029009,12]
[407712058,1772698245012,-150.99,0.00029009,2]
[407712059,1772698245022,-999.99,0.00029009,2]
[407712060,1772698245032,-706.91,0.00029009,2]
[407712061,1772698245041,-160.0,0.0002917,2]
[407712062,1772698245051,-172.70211477,0.0002917,2]
[407712063,1772698245062,-500.0,0.00029279,120]
[407712064,1772698245072,-1100.72713899,0.00029633,2]
[407712065,1772698245083,-1353.3,0.00029763,2]
[407712066,1772698245092,-151.0,0.00029797,7]
[407712067,1772698245101,-133125.145503,0.000298,7]
[407712068,1772698245110,-160.0,0.000298,7]
[407712069,1772698245120,-172.70211477,0.000298,7]
[407712070,1772698245130,-151.0,0.00029801,2]
[407712071,1772698245140,-1428.38747117,0.00029801,2]
[407712072,1772698245150,-209.40437684,0.00029801,2]
[407712073,1772698245159,-250.0,0.00029801,2]
[407712074,1772698245169,-250.0,0.00029801,2]
[407712075,1772698245182,-250.0,0.00029801,2]
[407712076,1772698245191,-250.0,0.00029801,2]
[407712077,1772698245200,-250.0,0.00029801,2]
[407712078,1772698245209,-250.0,0.00029801,2]
[407712079,1772698245218,-250.0,0.00029801,2]
[407712080,1772698245227,-250.0,0.00029801,2]
[407712081,1772698245237,-250.0,0.00029801,2]
[407712082,1772698245246,-250.0,0.00029801,2]
[407712083,1772698245257,-250.0,0.00029801,2]
[407712084,1772698245268,-250.0,0.00029801,2]
[407712085,1772698245279,-250.0,0.00029801,2]
[407712086,1772698245289,-250.0,0.00029801,2]
[407712087,1772698245299,-250.0,0.00029801,2]
[407712088,1772698245310,-250.0,0.00029801,2]
[407712089,1772698245320,-250.0,0.00029801,2]
[407712090,1772698245330,-500.0,0.00029801,2]
[407712091,1772698245340,-250.0,0.00029801,2]
[407712092,1772698245349,-250.0,0.00029801,2]
[407712093,1772698245358,-721.12765535,0.00029801,2]
[407712094,1772698245370,-500.0,0.00029801,2]
[407712095,1772698245379,-250.0,0.00029801,2]
[407712096,1772698245388,-500.0,0.00029801,2]
[407712097,1772698245398,-270.94567741,0.00029801,2]
[407712098,1772698245408,-500.0,0.00029801,2]
[407712099,1772698245418,-500.0,0.00029801,2]
[407712100,1772698245428,-500.0,0.00029801,2]
[407712101,1772698245437,-500.0,0.00029801,2]
[407712102,1772698245446,-500.0,0.00029801,2]
[407712103,1772698245455,-500.0,0.00029801,2]
[407712104,1772698245465,-500.0,0.00029801,2]
[407712105,1772698245474,-578.20924308,0.00029801,2]
[407712106,1772698245484,-500.0,0.00029801,2]
[407712107,1772698245494,-174.61919141,0.00029801,2]
[407712108,1772698245504,-300.0,0.00029801,2]
[407712109,1772698245514,-300.0,0.00029801,2]
[407712110,1772698245524,-300.0,0.00029801,2]
[407712111,1772698245537,-300.0,0.00029801,2]
[407712112,1772698245548,-300.0,0.00029801,2]
[407712113,1772698245558,-151.0,0.00029801,2]
[407712114,1772698245568,-300.0,0.00029801,2]
[407712115,1772698245577,-151.0,0.00029801,2]
[407712116,1772698245587,-250.0,0.00029801,2]
[407712117,1772698245598,-151.0,0.00029801,2]
[407712118,1772698245608,-262.90206542,0.00029801,2]
[407712119,1772698245618,-300.0,0.00029801,2]
[407712120,1772698245627,-250.0,0.00029801,2]
[407712121,1772698245637,-151.0,0.00029801,2]
[407712122,1772698245648,-300.0,0.00029801,2]
[407712123,1772698245659,-250.0,0.00029801,2]
[407712125,1772698245669,-151.0,0.00029801,2]
[407712127,1772698245679,-305.95163096,0.00029801,2]
[407712129,1772698245687,-250.0,0.00029801,2]
[407712130,1772698245697,-151.0,0.00029801,2]
[407712132,1772698245706,-250.0,0.00029801,2]
[407712134,1772698245715,-250.0,0.00029801,2]
[407712137,1772698245724,-151.0,0.00029801,2]
[407712140,1772698245734,-250.0,0.00029801,2]
[407712142,1772698245743,-151.0,0.00029801,2]
[407712144,1772698245753,-250.0,0.00029801,2]
[407712146,1772698245762,-250.0,0.00029801,2]
[407712148,1772698245771,-151.0,0.00029801,2]
[407712149,1772698245781,-250.0,0.00029801,2]
[407712150,1772698245790,-250.0,0.00029801,2]
[407712151,1772698245799,-151.0,0.00029801,2]
[407712152,1772698245809,-250.0,0.00029801,2]
[407712153,1772698245818,-250.0,0.00029801,2]
[407712154,1772698245827,-151.0,0.00029801,2]
[407712155,1772698245836,-151.0,0.00029801,2]
[407712156,1772698245845,-250.0,0.00029801,2]
[407712157,1772698245854,-250.0,0.00029801,2]
[407712158,1772698245864,-250.0,0.00029801,2]
[407712159,1772698245873,-250.0,0.00029801,2]
[407712160,1772698245882,-250.0,0.00029801,2]
[407712161,1772698245891,-500.0,0.00029801,2]
[407712162,1772698245901,-500.0,0.00029801,2]
[407712163,1772698245910,-500.0,0.00029801,2]
[407712164,1772698245919,-500.0,0.00029801,2]
[407712165,1772698245928,-500.0,0.00029801,2]
[407712166,1772698245937,-500.0,0.00029801,2]
[407712167,1772698245947,-500.0,0.00029801,2]
[407712168,1772698245956,-500.0,0.00029801,2]
[407712169,1772698245966,-209.40437684,0.00029801,2]
[407712170,1772698245975,-500.0,0.00029801,2]
[407712171,1772698245984,-500.0,0.00029801,2]
[407712172,1772698245993,-693.3919763,0.00029801,2]
[407712173,1772698246002,-500.0,0.00029801,2]
[407712174,1772698246011,-500.0,0.00029801,2]
[407712175,1772698246020,-500.0,0.00029801,2]
[407712176,1772698246030,-500.0,0.00029801,2]
[407712177,1772698246039,-500.0,0.00029801,2]
[407712178,1772698246048,-500.0,0.00029801,2]
[407712179,1772698246058,-500.0,0.00029801,2]
[407712180,1772698246067,-500.0,0.00029801,2]
[407712181,1772698246076,-500.0,0.00029801,2]
[407712182,1772698246085,-500.0,0.00029801,2]
[407712183,1772698246095,-209.40437684,0.00029801,2]
[407712184,1772698246104,-743.50770149,0.00029801,2]
[407712185,1772698246114,-693.3919763,0.00029801,2]
[407712186,1772698246123,-269.917619,0.00029801,2]
[407712187,1772698246132,-151.0,0.00029856,2]
[407712188,1772698246142,-719.04747942,0.00029856,2]
[407712189,1772698246151,-151.0,0.00029911,2]
[407712190,1772698246160,-745.65223616,0.00029911,2]
[407712191,1772698246169,-151.0,0.00029966,2]
[407712192,1772698246179,-773.2413689,0.00029966,2]
[407712193,1772698246188,-150.0,0.00029971,2]
[407712194,1772698246198,-200.0,0.0003,2]
[407712195,1772698246208,-322.36112167,0.0003,5]
[407712196,1772698246217,-1000.0,0.0003,7]
[407712197,1772698246226,-151.0,0.00030021,2]
[407712198,1772698246235,-801.85129955,0.00030021,2]
[407712199,1772698246245,-151.0,0.00030076,2]
[407712200,1772698246254,-831.51979763,0.00030076,2]